[Event "Titled Tuesday Blitz August 1 Late 2023"]
[White "Kula, Robert"]
[Black "Kanyamarala, Tarun"]
[WhiteFideId "1101218"]
[BlackFideId "45004714"]
[WhiteElo "2264"]
[BlackElo "2480"]
[Result "0-1"]
[Round "7"]
[TimeControl "180+1"]
[Date "2023.08.01"]
[WhiteClock "0:00:00"]
[BlackClock "0:01:05"]
[Board "92"]

1. d4 {[%clk 0:03:00]}  f5 {[%clk 0:02:58]} 2. c4 {[%clk 0:02:59]}  Nf6 {[%clk 0:02:58]} 3. Nc3 {[%clk 0:03:00]}  d6 {[%clk 0:02:58]} 4. e3 {[%clk 0:02:59]}  g6 {[%clk 0:02:55]} 5. Nf3 {[%clk 0:02:57]}  Bg7 {[%clk 0:02:56]} 6. b4 {[%clk 0:02:31]}  a5 {[%clk 0:02:56]} 7. b5 {[%clk 0:02:30]}  Kf8 {[%clk 0:02:55]} 8. a4 {[%clk 0:02:29]}  h6 {[%clk 0:02:54]} 9. Bb2 {[%clk 0:02:28]}  g5 {[%clk 0:02:54]} 10. d5 {[%clk 0:02:25]}  Nbd7 {[%clk 0:02:53]} 11. Qc2 {[%clk 0:02:22]}  Nc5 {[%clk 0:02:52]} 12. h4 {[%clk 0:02:19]}  g4 {[%clk 0:02:49]} 13. Nd4 {[%clk 0:02:18]}  h5 {[%clk 0:02:48]} 14. Nxf5 {[%clk 0:02:14]}  Bxf5 {[%clk 0:02:44]} 15. Qxf5 {[%clk 0:02:14]}  Qd7 {[%clk 0:02:44]} 16. Qc2 {[%clk 0:02:11]}  Kf7 {[%clk 0:02:41]} 17. Bd3 {[%clk 0:02:08]}  Rhf8 {[%clk 0:02:41]} 18. Bf5 {[%clk 0:02:03]}  Qd8 {[%clk 0:02:41]} 19. O-O {[%clk 0:01:57]}  Kg8 {[%clk 0:02:41]} 20. f3 {[%clk 0:01:42]}  g3 {[%clk 0:02:26]} 21. Ne4 {[%clk 0:01:23]}  Nfxe4 {[%clk 0:02:21]} 22. fxe4 {[%clk 0:01:22]}  Bxb2 {[%clk 0:02:20]} 23. Qxb2 {[%clk 0:01:20]}  e6 {[%clk 0:02:19]} 24. dxe6 {[%clk 0:01:19]}  Qxh4 {[%clk 0:02:18]} 25. Bh3 {[%clk 0:00:57]}  Nd3 {[%clk 0:02:07]} 26. Qe2 {[%clk 0:00:28]}  Nf2 {[%clk 0:02:02]} 27. e7 {[%clk 0:00:26]}  Rf7 {[%clk 0:01:57]} 28. c5 {[%clk 0:00:22]}  dxc5 {[%clk 0:01:44]} 29. Qc4 {[%clk 0:00:19]}  Re8 {[%clk 0:01:43]} 30. Rad1 {[%clk 0:00:16]}  Rxe7 {[%clk 0:01:41]} 31. Rd8+ {[%clk 0:00:16]}  Kh7 {[%clk 0:01:41]} 32. Qc3 {[%clk 0:00:10]}  Rg7 {[%clk 0:01:27]} 33. Bf5+ {[%clk 0:00:09]}  Kh6 {[%clk 0:01:22]} 34. Rh8+ {[%clk 0:00:08]}  Kg5 {[%clk 0:01:22]} 35. Rxf2 {[%clk 0:00:04]}  gxf2+ {[%clk 0:01:22]} 36. Kf1 {[%clk 0:00:04]}  Qg3 {[%clk 0:01:12]} 37. Qxc5 {[%clk 0:00:00]}  Re5 {[%clk 0:01:05]} 0-1


[Site "https://www.chess.com"]

[Event "Titled Tuesday Blitz August 1 Late 2023"]
[White "Salazar Farias, Luis German"]
[Black "MrLudus"]
[WhiteFideId "3902170"]
[WhiteElo "2474"]
[BlackElo "2091"]
[Result "1-0"]
[Round "7"]
[TimeControl "180+1"]
[Date "2023.08.01"]
[WhiteClock "0:00:18"]
[BlackClock "0:01:44"]
[Board "93"]

1. d4 {[%clk 0:02:55]}  Nf6 {[%clk 0:03:00]} 2. c4 {[%clk 0:02:54]}  c5 {[%clk 0:02:59]} 3. d5 {[%clk 0:02:54]}  e6 {[%clk 0:03:00]} 4. Nc3 {[%clk 0:02:53]}  exd5 {[%clk 0:03:01]} 5. cxd5 {[%clk 0:02:53]}  d6 {[%clk 0:03:01]} 6. Nf3 {[%clk 0:02:53]}  g6 {[%clk 0:03:02]} 7. Nd2 {[%clk 0:02:52]}  Bg7 {[%clk 0:03:02]} 8. e4 {[%clk 0:02:48]}  O-O {[%clk 0:03:03]} 9. Be2 {[%clk 0:02:45]}  Ne8 {[%clk 0:02:59]} 10. O-O {[%clk 0:02:26]}  a6 {[%clk 0:02:59]} 11. a4 {[%clk 0:02:21]}  f5 {[%clk 0:02:59]} 12. exf5 {[%clk 0:02:11]}  Bxf5 {[%clk 0:03:00]} 13. g4 {[%clk 0:02:03]}  Bc8 {[%clk 0:02:53]} 14. Nde4 {[%clk 0:01:59]}  Nd7 {[%clk 0:02:52]} 15. f4 {[%clk 0:01:58]}  Ndf6 {[%clk 0:02:52]} 16. Ng5 {[%clk 0:01:42]}  Qe7 {[%clk 0:02:52]} 17. Bf3 {[%clk 0:01:33]}  h6 {[%clk 0:02:51]} 18. Re1 {[%clk 0:01:33]}  Qd8 {[%clk 0:02:47]} 19. Ne6 {[%clk 0:01:29]}  Bxe6 {[%clk 0:02:47]} 20. dxe6 {[%clk 0:01:28]}  Qe7 {[%clk 0:02:46]} 21. g5 {[%clk 0:01:18]}  hxg5 {[%clk 0:02:46]} 22. fxg5 {[%clk 0:01:19]}  Nc7 {[%clk 0:02:30]} 23. gxf6 {[%clk 0:01:08]}  Bxf6 {[%clk 0:02:30]} 24. Bh6 {[%clk 0:00:53]}  Bd4+ {[%clk 0:02:30]} 25. Kh1 {[%clk 0:00:45]}  Rf5 {[%clk 0:02:18]} 26. Nd5 {[%clk 0:00:35]}  Nxd5 {[%clk 0:02:17]} 27. Be4 {[%clk 0:00:32]}  Rf2 {[%clk 0:02:02]} 28. Qg4 {[%clk 0:00:26]}  Bg7 {[%clk 0:01:50]} 29. Bxg7 {[%clk 0:00:20]}  Qxg7 {[%clk 0:01:49]} 30. Bxd5 {[%clk 0:00:20]}  Qxb2 {[%clk 0:01:45]} 31. Qxg6+ {[%clk 0:00:19]}  Kh8 {[%clk 0:01:46]} 32. Qh6+ {[%clk 0:00:18]}  Kg8 {[%clk 0:01:44]} 33. Rg1+ {[%clk 0:00:18]} 1-0


[Site "https://www.chess.com"]

[Event "Titled Tuesday Blitz August 1 Late 2023"]
[White "Haitin, Ilja"]
[Black "Rottenwohrer Suarez, Juan"]
[WhiteFideId "4501764"]
[BlackFideId "32068182"]
[WhiteElo "2370"]
[BlackElo "2505"]
[Result "1-0"]
[Round "7"]
[TimeControl "180+1"]
[Date "2023.08.01"]
[WhiteClock "0:00:07"]
[BlackClock "0:00:00"]
[Board "96"]

1. Nf3 {[%clk 0:02:50]}  d5 {[%clk 0:02:52]} 2. e3 {[%clk 0:02:49]}  c5 {[%clk 0:02:47]} 3. b3 {[%clk 0:02:48]}  Nf6 {[%clk 0:02:41]} 4. Bb2 {[%clk 0:02:47]}  g6 {[%clk 0:02:41]} 5. c4 {[%clk 0:02:46]}  dxc4 {[%clk 0:02:17]} 6. Bxc4 {[%clk 0:02:42]}  Bg7 {[%clk 0:02:18]} 7. O-O {[%clk 0:02:41]}  O-O {[%clk 0:02:18]} 8. d4 {[%clk 0:02:40]}  Ne4 {[%clk 0:02:07]} 9. Nbd2 {[%clk 0:02:36]}  Nd6 {[%clk 0:02:03]} 10. Be2 {[%clk 0:02:32]}  Nc6 {[%clk 0:02:02]} 11. Nc4 {[%clk 0:01:27]}  Nxc4 {[%clk 0:02:01]} 12. Bxc4 {[%clk 0:01:25]}  cxd4 {[%clk 0:01:59]} 13. Nxd4 {[%clk 0:01:22]}  Nxd4 {[%clk 0:01:59]} 14. Bxd4 {[%clk 0:01:20]}  Bxd4 {[%clk 0:01:58]} 15. Qxd4 {[%clk 0:01:19]}  Qxd4 {[%clk 0:01:58]} 16. exd4 {[%clk 0:01:20]}  Bd7 {[%clk 0:01:41]} 17. Rfe1 {[%clk 0:01:19]}  Rfe8 {[%clk 0:01:41]} 18. d5 {[%clk 0:01:13]}  b5 {[%clk 0:01:36]} 19. Bf1 {[%clk 0:01:13]}  Rac8 {[%clk 0:01:33]} 20. Rac1 {[%clk 0:01:12]}  Kf8 {[%clk 0:01:29]} 21. f4 {[%clk 0:01:06]}  b4 {[%clk 0:01:25]} 22. Kf2 {[%clk 0:01:03]}  Rxc1 {[%clk 0:01:19]} 23. Rxc1 {[%clk 0:01:02]}  Rc8 {[%clk 0:01:20]} 24. Rxc8+ {[%clk 0:01:02]}  Bxc8 {[%clk 0:01:21]} 25. Ke3 {[%clk 0:01:01]}  Ke8 {[%clk 0:00:45]} 26. Kd4 {[%clk 0:01:02]}  Kd7 {[%clk 0:00:43]} 27. Kc5 {[%clk 0:01:01]}  Bb7 {[%clk 0:00:28]} 28. Bc4 {[%clk 0:00:50]}  Kc7 {[%clk 0:00:14]} 29. Kxb4 {[%clk 0:00:29]}  Kd6 {[%clk 0:00:15]} 30. Kb5 {[%clk 0:00:21]}  f6 {[%clk 0:00:10]} 31. a4 {[%clk 0:00:17]}  h5 {[%clk 0:00:09]} 32. g3 {[%clk 0:00:16]}  g5 {[%clk 0:00:09]} 33. b4 {[%clk 0:00:14]}  h4 {[%clk 0:00:08]} 34. Ka5 {[%clk 0:00:09]}  Bxd5 {[%clk 0:00:02]} 35. Bxd5 {[%clk 0:00:09]}  Kxd5 {[%clk 0:00:03]} 36. b5 {[%clk 0:00:08]}  e5 {[%clk 0:00:03]} 37. fxe5 {[%clk 0:00:05]}  fxe5 {[%clk 0:00:04]} 38. b6 {[%clk 0:00:06]}  Kc6 {[%clk 0:00:02]} 39. bxa7 {[%clk 0:00:03]}  Kb7 {[%clk 0:00:02]} 40. Kb4 {[%clk 0:00:02]}  hxg3 {[%clk 0:00:02]} 41. hxg3 {[%clk 0:00:02]}  Kxa7 {[%clk 0:00:03]} 42. Kc4 {[%clk 0:00:02]}  Kb6 {[%clk 0:00:03]} 43. Kd5 {[%clk 0:00:03]}  Ka5 {[%clk 0:00:03]} 44. Kxe5 {[%clk 0:00:03]}  Kxa4 {[%clk 0:00:04]} 45. Kf5 {[%clk 0:00:03]}  Kb5 {[%clk 0:00:05]} 46. Kxg5 {[%clk 0:00:04]}  Kc6 {[%clk 0:00:05]} 47. Kf6 {[%clk 0:00:04]}  Kd7 {[%clk 0:00:06]} 48. Kf7 {[%clk 0:00:05]}  Kd6 {[%clk 0:00:06]} 49. g4 {[%clk 0:00:06]}  Ke5 {[%clk 0:00:07]} 50. g5 {[%clk 0:00:06]}  Kf5 {[%clk 0:00:00]} 51. g6 {[%clk 0:00:07]} 1-0


[Site "https://www.chess.com"]

[Event "Titled Tuesday Blitz August 1 Late 2023"]
[White "Hacker, Jonas"]
[Black "Polaczek, Richard"]
[WhiteFideId "1270968"]
[BlackFideId "200026"]
[WhiteElo "2330"]
[BlackElo "2434"]
[Result "1-0"]
[Round "7"]
[TimeControl "180+1"]
[Date "2023.08.01"]
[WhiteClock "0:00:30"]
[BlackClock "0:00:22"]
[Board "100"]

1. c4 {[%clk 0:03:00]}  e6 {[%clk 0:02:59]} 2. Nf3 {[%clk 0:02:58]}  d5 {[%clk 0:02:57]} 3. e3 {[%clk 0:02:58]}  Nf6 {[%clk 0:02:56]} 4. Nc3 {[%clk 0:02:58]}  c5 {[%clk 0:02:53]} 5. cxd5 {[%clk 0:02:57]}  exd5 {[%clk 0:02:52]} 6. Bb5+ {[%clk 0:02:58]}  Nc6 {[%clk 0:02:50]} 7. d4 {[%clk 0:02:57]}  a6 {[%clk 0:02:46]} 8. Bxc6+ {[%clk 0:02:56]}  bxc6 {[%clk 0:02:46]} 9. dxc5 {[%clk 0:02:56]}  Bxc5 {[%clk 0:02:45]} 10. O-O {[%clk 0:02:55]}  O-O {[%clk 0:02:43]} 11. b3 {[%clk 0:02:55]}  Bd6 {[%clk 0:02:42]} 12. Bb2 {[%clk 0:02:54]}  Qe7 {[%clk 0:02:37]} 13. Ne2 {[%clk 0:02:50]}  Ne4 {[%clk 0:02:27]} 14. Ng3 {[%clk 0:02:32]}  Bg4 {[%clk 0:02:06]} 15. Rc1 {[%clk 0:02:16]}  Bxf3 {[%clk 0:01:39]} 16. gxf3 {[%clk 0:01:45]}  Nxg3 {[%clk 0:01:31]} 17. hxg3 {[%clk 0:01:46]}  Rac8 {[%clk 0:01:25]} 18. Qd4 {[%clk 0:01:45]}  f6 {[%clk 0:01:23]} 19. Rxc6 {[%clk 0:01:31]}  Rxc6 {[%clk 0:01:14]} 20. Qxd5+ {[%clk 0:01:30]}  Kh8 {[%clk 0:01:13]} 21. Qxc6 {[%clk 0:01:30]}  a5 {[%clk 0:01:07]} 22. Kg2 {[%clk 0:01:22]}  Bb4 {[%clk 0:01:04]} 23. Rd1 {[%clk 0:01:16]}  h6 {[%clk 0:00:59]} 24. Rd7 {[%clk 0:01:09]}  Qe8 {[%clk 0:00:57]} 25. Qd5 {[%clk 0:00:58]}  Qc8 {[%clk 0:00:51]} 26. a3 {[%clk 0:00:51]}  Bc3 {[%clk 0:00:50]} 27. Bxc3 {[%clk 0:00:47]}  Qxc3 {[%clk 0:00:49]} 28. Rd8 {[%clk 0:00:44]}  Rxd8 {[%clk 0:00:47]} 29. Qxd8+ {[%clk 0:00:45]}  Kh7 {[%clk 0:00:47]} 30. Qd5 {[%clk 0:00:40]}  Kg6 {[%clk 0:00:42]} 31. b4 {[%clk 0:00:37]}  axb4 {[%clk 0:00:39]} 32. Qe4+ {[%clk 0:00:36]}  Kf7 {[%clk 0:00:36]} 33. Qxb4 {[%clk 0:00:34]}  Qc6 {[%clk 0:00:33]} 34. a4 {[%clk 0:00:34]}  Ke6 {[%clk 0:00:32]} 35. Qe4+ {[%clk 0:00:32]}  Kd6 {[%clk 0:00:29]} 36. Qxc6+ {[%clk 0:00:31]}  Kxc6 {[%clk 0:00:29]} 37. f4 {[%clk 0:00:31]}  Kb6 {[%clk 0:00:28]} 38. e4 {[%clk 0:00:29]}  Ka5 {[%clk 0:00:22]} 39. e5 {[%clk 0:00:30]} 1-0


[Site "https://www.chess.com"]

[Event "Titled Tuesday Blitz August 1 Late 2023"]
[White "Penagalapati, Abhinav"]
[Black "Kubatko, Ivan"]
[WhiteFideId "30938210"]
[BlackFideId "24111473"]
[WhiteElo "2176"]
[BlackElo "2404"]
[Result "1/2-1/2"]
[Round "7"]
[TimeControl "180+1"]
[Date "2023.08.01"]
[WhiteClock "0:00:01"]
[BlackClock "0:00:01"]
[Board "103"]

1. d4 {[%clk 0:03:00]}  d5 {[%clk 0:02:59]} 2. Nc3 {[%clk 0:03:01]}  Nf6 {[%clk 0:02:59]} 3. Bf4 {[%clk 0:03:01]}  a6 {[%clk 0:02:58]} 4. Nf3 {[%clk 0:03:00]}  e6 {[%clk 0:02:56]} 5. e3 {[%clk 0:03:00]}  b5 {[%clk 0:02:54]} 6. Bd3 {[%clk 0:02:59]}  Bb7 {[%clk 0:02:54]} 7. h3 {[%clk 0:02:58]}  Nbd7 {[%clk 0:02:54]} 8. O-O {[%clk 0:02:56]}  c5 {[%clk 0:02:54]} 9. dxc5 {[%clk 0:02:56]}  Nxc5 {[%clk 0:02:53]} 10. a4 {[%clk 0:02:56]}  b4 {[%clk 0:02:51]} 11. Ne2 {[%clk 0:02:56]}  Bd6 {[%clk 0:02:44]} 12. Qd2 {[%clk 0:02:54]}  Nfe4 {[%clk 0:02:15]} 13. Qxb4 {[%clk 0:02:34]}  Nxd3 {[%clk 0:01:53]} 14. Qxb7 {[%clk 0:02:33]}  Nxf4 {[%clk 0:01:51]} 15. Qc6+ {[%clk 0:02:30]}  Ke7 {[%clk 0:01:49]} 16. Nxf4 {[%clk 0:02:30]}  Nc5 {[%clk 0:01:31]} 17. Nd4 {[%clk 0:02:00]}  Rc8 {[%clk 0:01:28]} 18. b4 {[%clk 0:01:27]}  Bxf4 {[%clk 0:00:52]} 19. bxc5 {[%clk 0:01:15]}  Be5 {[%clk 0:00:38]} 20. Qb7+ {[%clk 0:01:02]}  Kf6 {[%clk 0:00:38]} 21. Rab1 {[%clk 0:00:58]}  Rxc5 {[%clk 0:00:36]} 22. Nc6 {[%clk 0:00:54]}  Qd6 {[%clk 0:00:36]} 23. Nxe5 {[%clk 0:00:53]}  Qxe5 {[%clk 0:00:36]} 24. Rb4 {[%clk 0:00:49]}  g5 {[%clk 0:00:34]} 25. Qxa6 {[%clk 0:00:40]}  Rxc2 {[%clk 0:00:33]} 26. Rb7 {[%clk 0:00:39]}  Rhc8 {[%clk 0:00:23]} 27. Qa7 {[%clk 0:00:38]}  R8c7 {[%clk 0:00:24]} 28. Rxc7 {[%clk 0:00:39]}  Rxc7 {[%clk 0:00:23]} 29. Qa5 {[%clk 0:00:39]}  Rc2 {[%clk 0:00:19]} 30. Qd8+ {[%clk 0:00:36]}  Kg7 {[%clk 0:00:19]} 31. Qb6 {[%clk 0:00:36]}  Qb2 {[%clk 0:00:16]} 32. Qxb2+ {[%clk 0:00:35]}  Rxb2 {[%clk 0:00:16]} 33. Ra1 {[%clk 0:00:36]}  Rb6 {[%clk 0:00:13]} 34. Kf1 {[%clk 0:00:36]}  Kf6 {[%clk 0:00:13]} 35. Ke2 {[%clk 0:00:37]}  Ke5 {[%clk 0:00:14]} 36. Kd3 {[%clk 0:00:37]}  Kd6 {[%clk 0:00:13]} 37. a5 {[%clk 0:00:37]}  Ra6 {[%clk 0:00:12]} 38. g4 {[%clk 0:00:23]}  e5 {[%clk 0:00:11]} 39. Ra2 {[%clk 0:00:18]}  Kc5 {[%clk 0:00:11]} 40. Rc2+ {[%clk 0:00:17]}  Kb5 {[%clk 0:00:11]} 41. Rc7 {[%clk 0:00:18]}  Rf6 {[%clk 0:00:09]} 42. Rd7 {[%clk 0:00:17]}  Kc5 {[%clk 0:00:07]} 43. Rc7+ {[%clk 0:00:13]}  Kb5 {[%clk 0:00:05]} 44. Rc2 {[%clk 0:00:02]}  Ra6 {[%clk 0:00:01]} 45. Rc7 {[%clk 0:00:01]}  Rf6 {[%clk 0:00:01]} 1/2-1/2


[Site "https://www.chess.com"]

[Event "Titled Tuesday Blitz August 1 Late 2023"]
[White "Perez, Maximiliano"]
[Black "Osmonbekov, Talaibek"]
[WhiteFideId "117234"]
[BlackFideId "2017253"]
[WhiteElo "2545"]
[BlackElo "2210"]
[Result "1-0"]
[Round "7"]
[TimeControl "180+1"]
[Date "2023.08.01"]
[WhiteClock "0:00:02"]
[BlackClock "0:00:00"]
[Board "104"]

1. e4 {[%clk 0:03:00]}  c5 {[%clk 0:03:00]} 2. Nf3 {[%clk 0:02:57]}  d6 {[%clk 0:03:00]} 3. d4 {[%clk 0:02:57]}  cxd4 {[%clk 0:03:01]} 4. Nxd4 {[%clk 0:02:57]}  Nf6 {[%clk 0:03:02]} 5. Nc3 {[%clk 0:02:58]}  g6 {[%clk 0:03:03]} 6. Be3 {[%clk 0:02:57]}  Bg7 {[%clk 0:03:02]} 7. f3 {[%clk 0:02:58]}  O-O {[%clk 0:03:03]} 8. Qd2 {[%clk 0:02:59]}  Nc6 {[%clk 0:03:03]} 9. g4 {[%clk 0:02:59]}  h5 {[%clk 0:03:02]} 10. gxh5 {[%clk 0:02:39]}  Nxh5 {[%clk 0:03:02]} 11. Nde2 {[%clk 0:02:38]}  Ne5 {[%clk 0:02:58]} 12. Nd4 {[%clk 0:02:32]}  Bd7 {[%clk 0:02:50]} 13. O-O-O {[%clk 0:02:31]}  Rc8 {[%clk 0:02:49]} 14. Kb1 {[%clk 0:02:22]}  a6 {[%clk 0:02:41]} 15. Be2 {[%clk 0:02:20]}  b5 {[%clk 0:02:40]} 16. Nd5 {[%clk 0:02:17]}  e6 {[%clk 0:02:32]} 17. Nb4 {[%clk 0:01:42]}  a5 {[%clk 0:02:18]} 18. Nd3 {[%clk 0:01:41]}  Nc4 {[%clk 0:02:16]} 19. Qc1 {[%clk 0:01:40]}  d5 {[%clk 0:01:00]} 20. exd5 {[%clk 0:01:28]}  exd5 {[%clk 0:00:56]} 21. Bf2 {[%clk 0:01:19]}  b4 {[%clk 0:00:36]} 22. f4 {[%clk 0:01:15]}  Nf6 {[%clk 0:00:35]} 23. f5 {[%clk 0:01:14]}  Ne4 {[%clk 0:00:30]} 24. Rhg1 {[%clk 0:00:19]}  Nxf2 {[%clk 0:00:17]} 25. Nxf2 {[%clk 0:00:20]}  Qf6 {[%clk 0:00:17]} 26. Ng4 {[%clk 0:00:15]}  Qh4 {[%clk 0:00:12]} 27. f6 {[%clk 0:00:14]}  Bh8 {[%clk 0:00:07]} 28. Qf4 {[%clk 0:00:12]}  Bxg4 {[%clk 0:00:05]} 29. Rxg4 {[%clk 0:00:11]}  Qxf6 {[%clk 0:00:05]} 30. Qg3 {[%clk 0:00:09]}  Rfe8 {[%clk 0:00:02]} 31. Bxc4 {[%clk 0:00:03]}  Rxc4 {[%clk 0:00:01]} 32. c3 {[%clk 0:00:02]}  bxc3 {[%clk 0:00:01]} 33. bxc3 {[%clk 0:00:03]}  Rb8+ {[%clk 0:00:00]} 34. Qxb8+ {[%clk 0:00:02]} 1-0


[Site "https://www.chess.com"]

[Event "Titled Tuesday Blitz August 1 Late 2023"]
[White "Harshal, Shahi"]
[Black "Grinev, Valeriy"]
[WhiteFideId "5048257"]
[BlackFideId "14117517"]
[WhiteElo "2326"]
[BlackElo "2519"]
[Result "0-1"]
[Round "7"]
[TimeControl "180+1"]
[Date "2023.08.01"]
[WhiteClock "0:00:00"]
[BlackClock "0:01:24"]
[Board "106"]

1. e4 {[%clk 0:03:00]}  c5 {[%clk 0:02:55]} 2. Nf3 {[%clk 0:02:57]}  Nc6 {[%clk 0:02:56]} 3. d4 {[%clk 0:02:57]}  cxd4 {[%clk 0:02:52]} 4. Nxd4 {[%clk 0:02:58]}  e5 {[%clk 0:02:51]} 5. Nb3 {[%clk 0:02:49]}  Nf6 {[%clk 0:02:50]} 6. Nc3 {[%clk 0:02:40]}  Bb4 {[%clk 0:02:49]} 7. Bc4 {[%clk 0:02:36]}  O-O {[%clk 0:02:46]} 8. Bg5 {[%clk 0:02:32]}  h6 {[%clk 0:02:42]} 9. h4 {[%clk 0:02:18]}  d6 {[%clk 0:02:36]} 10. Bxf6 {[%clk 0:00:49]}  Qxf6 {[%clk 0:02:33]} 11. Qd3 {[%clk 0:00:41]}  Be6 {[%clk 0:02:32]} 12. a3 {[%clk 0:00:38]}  Bxc4 {[%clk 0:02:31]} 13. Qxc4 {[%clk 0:00:38]}  Bxc3+ {[%clk 0:02:31]} 14. Qxc3 {[%clk 0:00:38]}  Rac8 {[%clk 0:02:32]} 15. Qd3 {[%clk 0:00:36]}  Rfd8 {[%clk 0:02:30]} 16. g3 {[%clk 0:00:29]}  a6 {[%clk 0:02:30]} 17. O-O {[%clk 0:00:28]}  Ne7 {[%clk 0:02:31]} 18. c4 {[%clk 0:00:25]}  Qe6 {[%clk 0:02:22]} 19. Nd2 {[%clk 0:00:24]}  Ng6 {[%clk 0:02:20]} 20. Rac1 {[%clk 0:00:20]}  Qg4 {[%clk 0:02:19]} 21. Qf3 {[%clk 0:00:20]}  Qh3 {[%clk 0:02:07]} 22. Rfd1 {[%clk 0:00:16]}  b5 {[%clk 0:02:03]} 23. cxb5 {[%clk 0:00:15]}  axb5 {[%clk 0:02:04]} 24. Qg2 {[%clk 0:00:10]}  Qg4 {[%clk 0:01:57]} 25. Qf3 {[%clk 0:00:10]}  Qh3 {[%clk 0:01:56]} 26. Qg2 {[%clk 0:00:09]}  Qe6 {[%clk 0:01:56]} 27. Qf3 {[%clk 0:00:04]}  Rxc1 {[%clk 0:01:48]} 28. Rxc1 {[%clk 0:00:04]}  d5 {[%clk 0:01:49]} 29. exd5 {[%clk 0:00:04]}  Rxd5 {[%clk 0:01:49]} 30. Rc8+ {[%clk 0:00:04]}  Kh7 {[%clk 0:01:48]} 31. Ne4 {[%clk 0:00:04]}  Rd4 {[%clk 0:01:46]} 32. Nc3 {[%clk 0:00:04]}  b4 {[%clk 0:01:45]} 33. Rc6 {[%clk 0:00:03]}  Qd7 {[%clk 0:01:31]} 34. axb4 {[%clk 0:00:03]}  Rxb4 {[%clk 0:01:26]} 35. Qe4 {[%clk 0:00:01]}  Rxe4 {[%clk 0:01:25]} 36. Nxe4 {[%clk 0:00:00]}  Qd5 {[%clk 0:01:24]} 0-1


[Site "https://www.chess.com"]

[Event "Titled Tuesday Blitz August 1 Late 2023"]
[White "Cooper, Aaron"]
[Black "Fiorito, Francisco"]
[WhiteFideId "2634945"]
[BlackFideId "180165"]
[WhiteElo "2317"]
[BlackElo "2515"]
[Result "0-1"]
[Round "7"]
[TimeControl "180+1"]
[Date "2023.08.01"]
[WhiteClock "0:00:00"]
[BlackClock "0:00:10"]
[Board "107"]

1. e4 {[%clk 0:03:00]}  a6 {[%clk 0:02:58]} 2. d4 {[%clk 0:02:58]}  b5 {[%clk 0:02:57]} 3. Nf3 {[%clk 0:02:56]}  Bb7 {[%clk 0:02:57]} 4. Bd3 {[%clk 0:02:55]}  e6 {[%clk 0:02:57]} 5. O-O {[%clk 0:02:54]}  Nf6 {[%clk 0:02:57]} 6. Re1 {[%clk 0:02:53]}  d5 {[%clk 0:02:56]} 7. e5 {[%clk 0:02:50]}  Nfd7 {[%clk 0:02:57]} 8. a4 {[%clk 0:02:46]}  b4 {[%clk 0:02:57]} 9. Bg5 {[%clk 0:02:37]}  Be7 {[%clk 0:02:52]} 10. h4 {[%clk 0:02:34]}  c5 {[%clk 0:02:51]} 11. c3 {[%clk 0:02:18]}  Nc6 {[%clk 0:02:49]} 12. Nbd2 {[%clk 0:02:09]}  h6 {[%clk 0:02:45]} 13. Bxe7 {[%clk 0:02:07]}  Qxe7 {[%clk 0:02:46]} 14. c4 {[%clk 0:02:02]}  Nxd4 {[%clk 0:02:42]} 15. Nxd4 {[%clk 0:02:00]}  cxd4 {[%clk 0:02:42]} 16. cxd5 {[%clk 0:01:44]}  Bxd5 {[%clk 0:02:40]} 17. Be4 {[%clk 0:01:43]}  Nb6 {[%clk 0:02:29]} 18. Bxd5 {[%clk 0:01:40]}  Nxd5 {[%clk 0:02:30]} 19. Ne4 {[%clk 0:01:38]}  O-O {[%clk 0:02:23]} 20. Qxd4 {[%clk 0:01:35]}  Rfd8 {[%clk 0:02:19]} 21. Nd6 {[%clk 0:01:32]}  Rd7 {[%clk 0:02:12]} 22. Rad1 {[%clk 0:01:31]}  Rc7 {[%clk 0:02:05]} 23. Qg4 {[%clk 0:01:26]}  Rc2 {[%clk 0:01:56]} 24. Rd3 {[%clk 0:01:17]}  g6 {[%clk 0:01:35]} 25. Rf3 {[%clk 0:01:07]}  Rf8 {[%clk 0:01:19]} 26. Ne4 {[%clk 0:00:51]}  Rxb2 {[%clk 0:01:03]} 27. Nf6+ {[%clk 0:00:45]}  Nxf6 {[%clk 0:01:01]} 28. Rxf6 {[%clk 0:00:46]}  Kh7 {[%clk 0:00:48]} 29. Re3 {[%clk 0:00:42]}  Rb1+ {[%clk 0:00:41]} 30. Kh2 {[%clk 0:00:42]}  h5 {[%clk 0:00:39]} 31. Qg5 {[%clk 0:00:38]}  Rg8 {[%clk 0:00:14]} 32. Ref3 {[%clk 0:00:37]}  Rg7 {[%clk 0:00:15]} 33. g4 {[%clk 0:00:34]}  hxg4 {[%clk 0:00:14]} 34. Qxg4 {[%clk 0:00:34]}  b3 {[%clk 0:00:13]} 35. h5 {[%clk 0:00:34]}  b2 {[%clk 0:00:09]} 36. hxg6+ {[%clk 0:00:33]}  fxg6 {[%clk 0:00:10]} 37. Rh3+ {[%clk 0:00:23]}  Kg8 {[%clk 0:00:11]} 38. Qh4 {[%clk 0:00:17]}  Rh1+ {[%clk 0:00:11]} 39. Kxh1 {[%clk 0:00:16]}  b1=Q+ {[%clk 0:00:11]} 40. Kh2 {[%clk 0:00:00]}  Rh7 {[%clk 0:00:10]} 0-1


[Site "https://www.chess.com"]

[Event "Titled Tuesday Blitz August 1 Late 2023"]
[White "Gaal, Zsoka"]
[Black "Miguelitro69"]
[WhiteFideId "777765"]
[WhiteElo "2450"]
[BlackElo "2305"]
[Result "1-0"]
[Round "7"]
[TimeControl "180+1"]
[Date "2023.08.01"]
[WhiteClock "0:00:08"]
[BlackClock "0:00:01"]
[Board "111"]

1. Nf3 {[%clk 0:02:54]}  c5 {[%clk 0:02:58]} 2. c4 {[%clk 0:02:51]}  Nc6 {[%clk 0:02:58]} 3. g3 {[%clk 0:02:51]}  g6 {[%clk 0:02:58]} 4. Bg2 {[%clk 0:02:52]}  Bg7 {[%clk 0:02:59]} 5. O-O {[%clk 0:02:52]}  Nf6 {[%clk 0:02:59]} 6. Nc3 {[%clk 0:02:53]}  O-O {[%clk 0:03:00]} 7. d4 {[%clk 0:02:53]}  cxd4 {[%clk 0:02:58]} 8. Nxd4 {[%clk 0:02:54]}  a6 {[%clk 0:02:58]} 9. c5 {[%clk 0:02:49]}  Qc7 {[%clk 0:02:51]} 10. Bg5 {[%clk 0:02:40]}  h6 {[%clk 0:02:42]} 11. Bxf6 {[%clk 0:02:39]}  Bxf6 {[%clk 0:02:42]} 12. Nd5 {[%clk 0:02:40]}  Qe5 {[%clk 0:02:37]} 13. e3 {[%clk 0:02:25]}  Nxd4 {[%clk 0:02:34]} 14. exd4 {[%clk 0:02:25]}  Qxd4 {[%clk 0:02:32]} 15. Nxe7+ {[%clk 0:02:25]}  Kg7 {[%clk 0:02:20]} 16. Qxd4 {[%clk 0:02:20]}  Bxd4 {[%clk 0:02:18]} 17. Rfd1 {[%clk 0:02:18]}  Bxc5 {[%clk 0:02:16]} 18. Nxc8 {[%clk 0:02:18]}  Raxc8 {[%clk 0:02:16]} 19. Rxd7 {[%clk 0:02:19]}  b6 {[%clk 0:01:56]} 20. Bb7 {[%clk 0:02:15]}  Rcd8 {[%clk 0:01:52]} 21. Rad1 {[%clk 0:02:15]}  Rxd7 {[%clk 0:01:51]} 22. Rxd7 {[%clk 0:02:16]}  a5 {[%clk 0:01:51]} 23. Bd5 {[%clk 0:02:17]}  g5 {[%clk 0:01:50]} 24. h4 {[%clk 0:01:50]}  gxh4 {[%clk 0:01:46]} 25. gxh4 {[%clk 0:01:51]}  Kf6 {[%clk 0:01:47]} 26. Kg2 {[%clk 0:01:49]}  Kg6 {[%clk 0:01:22]} 27. Kf3 {[%clk 0:01:47]}  f6 {[%clk 0:01:21]} 28. Kf4 {[%clk 0:01:37]}  Bxf2 {[%clk 0:01:13]} 29. Be4+ {[%clk 0:01:38]}  Kh5 {[%clk 0:01:08]} 30. Rd2 {[%clk 0:00:39]}  Bc5 {[%clk 0:00:28]} 31. Rg2 {[%clk 0:00:36]}  Bd6+ {[%clk 0:00:20]} 32. Kf3 {[%clk 0:00:17]}  Kxh4 {[%clk 0:00:18]} 33. Rg4+ {[%clk 0:00:15]}  Kh3 {[%clk 0:00:15]} 34. Bf5 {[%clk 0:00:16]}  Kh2 {[%clk 0:00:13]} 35. Rh4+ {[%clk 0:00:15]}  Kg1 {[%clk 0:00:13]} 36. Rg4+ {[%clk 0:00:13]}  Kf1 {[%clk 0:00:11]} 37. Rd4 {[%clk 0:00:09]}  Ke1 {[%clk 0:00:10]} 38. Rxd6 {[%clk 0:00:09]}  h5 {[%clk 0:00:05]} 39. Bc2 {[%clk 0:00:08]}  Rd8 {[%clk 0:00:02]} 40. Rxd8 {[%clk 0:00:08]}  h4 {[%clk 0:00:01]} 41. Rd1# {[%clk 0:00:08]} 1-0


[Site "https://www.chess.com"]